bitfinex-derivatives/quotes_ETHF0:USTF0_20260222
["timestamp","ask_amount","ask_price","bid_price","bid_amount"]
[1771793106076,6.39231908,1944.6,1944.0,0.5682986]
[1771793106279,0.55330218,1944.6,1944.0,0.5682986]
[1771793129294,6.4241649,1944.5,1944.0,0.5682986]
[1771793129498,0.58004318,1944.5,1944.0,0.5682986]
[1771793146813,0.58004318,1944.5,1943.9,0.58456357]
[1771793147212,0.56564598,1944.3,1943.9,0.58456357]
[1771793147413,0.56564598,1944.1,1943.8,0.58456357]
[1771793154618,0.56564598,1944.3,1943.8,0.58456357]
[1771793163524,0.56564598,1944.3,1943.8,0.59456357]
[1771793191745,0.60243276,1944.1,1943.6,0.57133921]
[1771793260492,4.31878525,1944.4,1943.6,0.57133921]
[1771793260493,0.5778198,1944.3,1943.6,0.57133921]
[1771793260792,0.5778198,1944.7,1944.2,0.54759231]
[1771793265793,0.58268777,1944.8,1944.2,0.54759231]
[1771793273710,0.00486797,1944.8,1944.4,0.54759231]
[1771793273909,0.00486797,1944.8,1944.4,0.42823529]
[1771793274110,0.5778198,1944.9,1944.4,0.42823529]
[1771793274910,0.5778198,1944.9,1944.4,0.07016423]
[1771793275208,0.58330533,1944.9,1944.4,0.07016423]
[1771793280712,0.5778198,1945.0,1944.4,0.07016423]
[1771793281713,0.58287809,1945.0,1944.4,0.07016423]
[1771793282917,0.5778198,1944.8,1944.2,0.54759231]
[1771793284413,0.5778198,1944.8,1944.1,0.54759231]
[1771793290619,0.5778198,1944.8,1944.3,0.60503267]
[1771793292918,0.00505829,1945.0,1944.3,0.60503267]
[1771793293124,0.56342255,1945.2,1944.7,0.60503267]
[1771793294120,0.56950169,1945.2,1944.7,0.60945713]
[1771793302926,0.57293879,1945.5,1945.1,0.60166684]
[1771793303931,0.57951329,1945.5,1945.1,0.60166684]
[1771793307928,0.57951329,1945.5,1944.7,0.00442446]
[1771793307929,0.57951329,1945.5,1945.2,1.78788863]
[1771793308129,0.11851006,1945.9,1945.2,1.78788863]
[1771793309034,0.12258878,1945.9,1945.2,1.78788863]
[1771793310232,0.00407872,1945.9,1945.4,0.60166684]
[1771793310532,1.19030051,1945.9,1945.2,0.60166684]
[1771793311831,0.11694989,1945.8,1945.2,0.60166684]
[1771793312536,1.18622179,1945.7,1945.2,0.60166684]
[1771793312739,0.10694903,1945.6,1945.2,0.60166684]
[1771793314739,0.10694903,1945.6,1944.8,0.60166684]
[1771793331152,0.10694903,1945.6,1944.9,0.57348806]
[1771793334351,0.10694903,1945.6,1944.9,0.58348806]
[1771793347060,4.41076782,1945.7,1944.9,0.58348806]
[1771793348862,4.31074204,1945.7,1944.9,0.58348806]
[1771793349357,4.31074204,1945.8,1945.0,7.0419997]
[1771793349556,4.31482076,1945.9,1945.1,0.55695118]
[1771793350553,1.44091658,1945.9,1945.2,0.25714]
[1771793350758,0.60711352,1946.1,1945.4,6.48504852]
[1771793350956,0.60711352,1946.1,1945.3,6.48504852]
[1771793351658,0.61329525,1946.1,1945.3,6.48504852]
[1771793354259,0.61329525,1946.1,1945.2,6.48504852]
[1771793354455,0.61329525,1946.1,1945.3,0.00085113]
[1771793358761,0.61329525,1946.1,1945.4,1.18455034]
[1771793361762,0.60714628,1946.2,1945.6,1.18455034]
[1771793362261,0.60714628,1946.2,1945.4,7.66959886]
[1771793362460,0.60714628,1946.2,1945.4,1.18455034]
[1771793362661,0.60714628,1946.2,1945.4,7.66959886]
[1771793362861,0.61301016,1946.2,1945.4,7.66959886]
[1771793363363,0.61301016,1946.2,1945.4,1.18455034]
[1771793364356,0.61301016,1946.2,1945.2,7.66959886]
[1771793364961,0.61301016,1946.2,1945.4,1.18455034]
[1771793369266,0.61301016,1946.2,1945.2,1.18455034]
[1771793369866,0.61301016,1946.2,1945.1,6.48504852]
[1771793370067,0.61301016,1946.2,1944.9,6.49504852]
[1771793370068,0.60729647,1946.0,1944.9,6.49504852]
[1771793370461,0.60729647,1946.0,1945.0,0.00150285]
[1771793371764,0.60729647,1946.0,1945.1,0.00150285]
[1771793373369,0.58143246,1945.9,1945.2,1.1842475]
[1771793373667,0.58143246,1945.9,1945.2,1.23526858]
[1771793376964,0.58143246,1945.9,1945.2,0.05102108]
[1771793379463,0.59893908,1945.7,1945.0,6.48504852]
[1771793379768,0.59893908,1945.7,1945.0,0.05459511]
[1771793382868,1.1842475,1945.8,1944.9,0.01]
[1771793382869,0.59893908,1945.5,1944.9,0.01]
[1771793383563,0.59893908,1945.5,1944.9,0.06825367]
[1771793384071,0.59893908,1945.5,1944.9,1.25250117]
[1771793385775,0.59893908,1945.5,1945.0,0.05823543]
[1771793395887,0.59893908,1945.5,1944.9,1.25398299]
[1771793401390,1.78318658,1945.5,1944.9,0.01]
[1771793401593,0.59893908,1945.4,1944.9,0.01]
[1771793402596,0.59893908,1945.2,1944.7,0.00442446]
[1771793405393,0.59893908,1945.2,1944.3,7.72635409]
[1771793405591,0.59893908,1945.0,1944.2,6.54210659]
[1771793405791,0.59893908,1945.0,1944.2,0.05705807]
[1771793406491,0.59893908,1945.0,1944.4,0.06594354]
[1771793414503,0.59893908,1945.0,1944.3,1.25107695]
[1771793415805,0.59893908,1945.0,1944.2,0.07334424]
[1771793416606,0.59893908,1945.0,1944.2,0.0065273]
[1771793425813,0.58323709,1944.8,1944.2,0.0065273]
[1771793426013,0.58913046,1944.8,1944.2,0.0065273]
[1771793436619,0.58913046,1944.8,1944.0,6.48504852]
[1771793436924,0.58913046,1944.8,1943.9,6.53436572]
[1771793437124,0.58913046,1944.8,1943.8,6.53436572]
[1771793437323,0.58913046,1944.8,1943.7,6.53436572]
[1771793437719,0.58913046,1944.8,1943.7,6.53938334]
[1771793437922,0.58234912,1944.7,1943.7,0.05433482]
[1771793446434,0.5857352,1944.5,1943.7,0.00501762]
[1771793446831,0.5857352,1944.4,1943.4,0.04202881]
[1771793447034,0.5857352,1944.3,1943.4,0.04202881]
[1771793447434,0.5857352,1944.3,1943.2,0.04202881]
[1771793447833,0.5857352,1944.3,1943.2,0.04690874]
[1771793460839,0.5857352,1944.3,1943.6,1.23175008]
[1771793461044,0.5857352,1944.3,1943.7,0.04610186]
[1771793461944,0.5857352,1944.3,1943.6,1.18564822]
[1771793462141,0.5857352,1944.3,1943.5,0.04610186]
[1771793472053,0.5857352,1944.3,1943.4,7.67069674]
[1771793472254,0.5857352,1944.3,1943.4,7.71824865]
[1771793475453,0.58299309,1944.2,1943.3,6.53337627]
[1771793479258,0.58299309,1944.2,1943.3,6.48504852]
[1771793479446,0.58299309,1944.2,1943.3,0.04898043]
[1771793485656,0.58299309,1944.2,1943.2,6.48992845]
[1771793485657,4.88624367,1944.2,1943.2,6.48992845]
[1771793485852,0.58262203,1944.1,1943.2,0.00487993]
[1771793488863,0.58262203,1944.1,1943.2,0.0517129]
[1771793495268,0.58262203,1944.1,1943.3,1.18647738]
[1771793495467,0.58262203,1944.1,1943.3,1.23378264]
[1771793501564,0.58262203,1944.1,1943.3,1.18647738]
[1771793501768,0.585198,1943.5,1942.8,14.62885168]
[1771793501966,0.585198,1943.5,1942.8,0.04402198]
[1771793502775,0.585198,1943.5,1942.8,0.05060207]
[1771793504864,0.585198,1943.5,1942.4,8.09978118]
[1771793505067,0.58119962,1943.2,1942.6,0.05201873]
[1771793505869,0.58588157,1943.2,1942.6,0.0558481]
[1771793506070,0.58588157,1943.2,1942.6,0.00382937]
[1771793509974,0.58588157,1943.2,1942.6,1.19030675]
[1771793510175,0.58588157,1943.2,1942.6,1.24488936]
[1771793510878,0.58588157,1943.2,1942.7,0.05487311]
[1771793512378,0.58588157,1943.2,1942.6,1.19030675]
[1771793512677,0.58588157,1943.2,1942.6,1.24550451]
[1771793521587,0.5822314,1942.6,1941.9,1.18647738]
[1771793521789,0.5822314,1942.6,1941.9,1.23643257]
[1771793521990,0.5822314,1942.6,1942.0,0.04995519]
[1771793522185,0.5822314,1942.6,1942.1,1.18647738]
[1771793522382,0.5822314,1942.6,1942.1,1.23643257]
[1771793522579,0.5822314,1942.6,1942.2,0.04935404]
[1771793522783,0.56711533,1943.1,1942.6,0.60306261]
[1771793523186,0.56711533,1943.1,1942.4,0.60306261]
[1771793525492,0.56711533,1943.1,1942.5,1.78953999]
[1771793526592,0.56711533,1943.1,1942.5,0.60306261]
[1771793526892,0.56711533,1943.1,1942.7,0.60306261]
[1771793527092,0.56711533,1943.1,1942.7,0.48359406]
[1771793530490,0.00468195,1943.2,1942.7,0.48359406]
[1771793530692,0.58603007,1943.2,1942.7,0.48359406]
[1771793533296,6.4246972,1943.1,1942.7,0.48359406]
[1771793533491,0.58134812,1943.1,1942.7,0.48359406]
[1771793535497,0.58134812,1943.1,1942.6,1.74820882]
[1771793536294,0.58134812,1943.1,1942.7,0.56173144]
[1771793537291,0.59851329,1943.2,1942.9,0.56173144]
[1771793537497,1.94190736,1943.4,1943.0,0.56173144]
[1771793537792,6.44003597,1943.3,1943.0,0.56173144]
[1771793537995,0.59383134,1943.3,1943.0,0.56173144]
[1771793538394,0.59798966,1943.3,1943.0,0.56173144]
[1771793552002,0.59798966,1943.3,1943.0,1.74820882]
[1771793552003,0.00415832,1943.3,1943.0,1.74820882]
[1771793552209,1.34807602,1943.4,1943.1,0.56173144]
[1771793552708,1.94190736,1943.4,1943.1,0.56173144]
[1771793553107,1.94817436,1943.4,1943.1,0.56173144]
[1771793553505,0.59383134,1943.8,1943.3,0.56173144]
[1771793553810,0.59383134,1943.7,1943.2,0.56173144]
[1771793554505,0.59759007,1943.7,1943.2,0.56173144]
[1771793569427,0.59759007,1943.7,1943.2,0.57173144]
[1771793584441,0.59759007,1943.7,1943.2,0.01]
[1771793584839,0.59759007,1943.7,1943.2,0.55666129]
[1771793589648,0.59759007,1943.7,1943.2,0.01]
[1771793589851,0.55623804,1943.5,1943.0,0.5896316]
[1771793595353,0.55623804,1943.5,1942.8,0.59978083]
[1771793599551,0.00375873,1943.7,1942.8,0.59978083]
[1771793599756,0.57521058,1943.7,1942.9,0.59978083]
[1771793600455,5.81214438,1943.6,1942.9,0.59978083]
[1771793600654,0.57145185,1943.5,1942.9,0.59978083]
[1771793605658,0.57145185,1943.5,1942.8,0.59978083]
[1771793606550,0.57145185,1943.3,1942.8,0.59978083]
[1771793607861,0.57145185,1943.3,1942.6,0.59978083]
[1771793619570,0.57851702,1942.9,1942.4,0.57132043]
[1771793624575,0.57851702,1942.4,1941.9,0.57132043]
[1771793625580,0.57851702,1942.4,1941.9,0.57611526]
[1771793628982,0.57851702,1942.0,1941.2,1.18741269]
[1771793629182,0.57851702,1942.0,1941.3,0.57132043]
[1771793629987,0.5825978,1942.0,1941.3,0.5750626]
[1771793631582,0.57851702,1941.6,1941.2,0.57132043]
[1771793632588,0.57851702,1941.6,1941.2,0.57680384]
[1771793632787,0.57851702,1941.9,1941.2,0.57680384]
[1771793633683,0.57851702,1941.6,1941.0,0.57132043]
[1771793634685,0.57851702,1941.6,1941.0,0.57768744]
[1771793635893,0.57851702,1941.9,1941.2,0.57132043]
[1771793636487,0.57851702,1941.9,1941.4,0.57132043]
[1771793639393,0.57851702,1941.9,1941.5,0.57132043]
[1771793641994,0.55369746,1942.0,1941.7,0.57132043]
[1771793642201,0.47918885,1942.0,1941.7,0.57132043]
[1771793642402,0.57851702,1942.6,1941.9,0.57132043]
[1771793643299,0.5842193,1942.6,1941.9,0.57132043]
[1771793645203,0.5842193,1942.6,1942.1,0.57132043]
[1771793645704,0.00570228,1942.6,1942.1,0.57132043]
[1771793647103,0.5842193,1942.6,1942.1,0.57132043]
[1771793648597,0.00570228,1942.6,1942.1,0.57132043]
[1771793650905,0.55139803,1942.5,1942.1,0.57132043]
[1771793651307,0.55710031,1942.6,1942.1,0.57132043]
[1771793655409,0.55710031,1942.6,1941.9,0.57210918]
[1771793655812,0.57514478,1942.5,1941.9,0.57210918]
[1771793657307,0.58084706,1942.6,1942.2,0.57210918]
[1771793663216,0.00570228,1942.6,1942.2,0.57210918]
[1771793663712,0.58084706,1942.6,1942.2,0.57210918]
[1771793663913,0.00570228,1942.6,1942.2,0.57210918]
[1771793664814,0.58084706,1942.6,1942.2,0.57210918]
[1771793668915,0.57514478,1942.4,1941.5,0.57210918]
[1771793669217,0.57514478,1942.4,1941.3,0.57210918]
[1771793669218,0.57514478,1941.9,1941.3,0.57210918]
[1771793670122,0.57514478,1941.8,1941.3,0.57210918]
[1771793672316,0.57514478,1942.2,1941.7,0.57210918]
[1771793674526,0.57514478,1941.7,1941.1,0.57210918]
[1771793674820,1.76255747,1941.5,1941.1,0.57210918]
[1771793675215,0.57514478,1941.5,1941.1,0.57210918]
[1771793675523,0.57514478,1942.0,1941.1,0.57210918]
[1771793675825,0.57514478,1941.8,1941.1,0.57210918]
[1771793677926,0.57514478,1941.4,1939.9,0.57210918]
[1771793678222,0.57514478,1941.2,1939.9,0.57210918]
[1771793679126,0.57938863,1941.2,1939.9,0.57574812]
[1771793679319,0.25768,1941.1,1939.9,0.57574812]
[1771793679617,0.54920561,1940.9,1939.9,0.57574812]
[1771793682320,0.54920561,1940.7,1939.9,0.00363894]
[1771793682525,0.54920561,1940.7,1939.9,0.60576753]
[1771793683426,0.54920561,1940.9,1939.9,0.60576753]
[1771793691428,0.54920561,1941.1,1939.9,0.60576753]
[1771793693227,0.54920561,1941.1,1940.1,0.60212859]
[1771793703737,0.54920561,1941.1,1939.9,0.00363894]
[1771793703738,0.00424385,1941.2,1940.3,0.60212859]
[1771793704046,0.55344946,1941.2,1940.3,0.60212859]
[1771793706742,0.00424385,1941.2,1940.3,0.60212859]
[1771793706948,0.55344946,1941.2,1940.3,0.60212859]
[1771793713055,0.00424385,1941.2,1940.5,0.55503945]
[1771793715251,0.58524272,1941.2,1940.5,0.55503945]
[1771793726263,0.00424385,1941.2,1940.5,0.55503945]
[1771793728968,0.58524272,1941.2,1940.5,0.55503945]
[1771793741377,0.55748893,1941.1,1940.5,0.55503945]
[1771793756395,1.18987974,1940.6,1940.1,0.58871276]
[1771793756588,0.55748893,1940.6,1940.0,0.58871276]
[1771793756792,0.55748893,1940.6,1940.1,0.58871276]
[1771793760101,0.55748893,1941.1,1940.3,0.58871276]
[1771793760301,0.55748893,1941.1,1939.9,0.26146894]
[1771793760302,0.55748893,1941.1,1940.5,0.58871276]
[1771793767705,0.55748893,1941.1,1940.7,0.58871276]
[1771793782920,0.55824129,1941.2,1940.7,0.58871276]
[1771793808848,0.55824129,1941.2,1940.4,0.60543543]
[1771793822059,0.00424385,1941.2,1940.6,0.60543543]
[1771793833069,0.56316607,1941.2,1940.6,0.60543543]
[1771793863294,0.56316607,1941.2,1940.9,0.58285994]
[1771793865696,0.56316607,1941.2,1940.8,1.77227711]
[1771793866499,0.56316607,1941.2,1940.6,1.77227711]
[1771793873298,0.59270819,1941.1,1940.4,0.58285994]
[1771793873504,0.59270819,1940.9,1940.4,0.58285994]
[1771793875203,0.59270819,1940.9,1940.5,0.58285994]
[1771793878397,0.59270819,1941.1,1940.5,0.58285994]
[1771793892129,0.59270819,1941.1,1940.6,1.18941717]
[1771793892424,0.59270819,1941.1,1940.7,0.57915303]
[1771793934164,0.59270819,1941.1,1940.3,0.60679642]
[1771793943069,0.59270819,1941.1,1940.3,0.61679642]
[1771793960501,0.5471574,1940.9,1940.3,0.01]
[1771793961187,0.5471574,1940.9,1939.9,0.00363894]
[1771793961397,0.5471574,1940.7,1939.9,0.5680482]
[1771793980315,0.5471574,1940.7,1940.0,0.56807827]
[1771793980507,0.5614256,1941.0,1940.2,0.56807827]
[1771793985214,0.5614256,1941.0,1940.4,0.56807827]
[1771793988112,6.09029086,1940.9,1940.4,0.56807827]
[1771793988308,0.5614256,1941.1,1940.5,1.19006017]
[1771793988513,0.5614256,1941.1,1940.6,0.56807827]
[1771793989016,0.5614256,1941.1,1940.5,1.19006017]
[1771793989315,0.5614256,1941.1,1940.5,1.75813844]
[1771793989517,0.5614256,1941.1,1940.5,0.56807827]
[1771793994016,0.5614256,1941.1,1940.6,0.56807827]
[1771793998425,0.5614256,1941.4,1940.9,0.56807827]
[1771793999422,0.567915,1941.4,1940.9,0.56807827]
[1771794000526,0.0064894,1941.4,1941.1,0.56807827]
[1771794000827,0.5614256,1941.9,1941.3,0.56807827]
[1771794001022,6.6482307,1941.8,1941.3,0.56807827]
[1771794001223,0.5614256,1941.8,1941.3,0.56807827]
[1771794001622,0.56628926,1941.8,1941.3,0.57389918]
[1771794003422,0.00486366,1941.8,1941.3,0.57389918]
[1771794003728,0.00486366,1941.8,1941.5,0.56807827]
[1771794005129,0.5614256,1942.0,1941.5,0.56807827]
[1771794005325,0.5614256,1942.5,1941.7,0.56807827]
[1771794006128,0.56726577,1942.5,1941.7,0.56807827]
[1771794007232,0.5614256,1942.3,1941.7,0.56807827]
[1771794011036,0.58210864,1941.9,1941.5,0.57909246]
[1771794015845,0.58797834,1942.0,1941.5,0.57909246]
[1771794016141,0.58797834,1942.1,1941.5,0.57909246]
[1771794023945,0.58797834,1942.3,1941.5,0.57909246]
[1771794024750,0.58797834,1942.3,1941.7,0.60376247]
[1771794031152,6.67501496,1942.2,1941.7,0.60376247]
[1771794031355,0.58797834,1942.2,1941.7,0.60376247]
[1771794032454,0.58797834,1942.2,1941.7,0.61376247]
[1771794048763,0.58797834,1942.2,1941.7,0.01]
[1771794049268,0.58797834,1942.2,1941.7,0.58752584]
[1771794053275,6.6531092,1942.1,1941.7,0.58752584]
[1771794053469,0.55546122,1942.1,1941.7,0.58752584]
[1771794055473,0.55546122,1942.3,1941.7,0.58752584]
[1771794055766,6.09765042,1942.2,1941.7,0.58752584]
[1771794055964,0.55546122,1942.3,1941.7,0.58752584]
[1771794056170,6.6480905,1942.2,1941.7,0.58752584]
[1771794056370,0.55546122,1942.2,1941.7,0.58752584]
[1771794114014,0.55546122,1942.2,1941.8,0.58890365]
[1771794114314,0.55571274,1942.3,1941.8,0.58890365]
[1771794114515,6.08638233,1942.2,1941.8,0.58890365]
[1771794114714,0.55571274,1942.3,1941.8,0.58890365]
[1771794115018,6.64220224,1942.2,1941.8,0.58890365]
[1771794115220,0.55571274,1942.2,1941.8,0.58890365]
[1771794116117,4.8810825,1942.4,1941.8,0.58890365]
[1771794116320,6.6419665,1942.3,1941.8,0.58890365]
[1771794116520,6.08625376,1942.2,1941.8,0.58890365]
[1771794116720,0.55571274,1942.3,1941.8,0.58890365]
[1771794117017,6.08625376,1942.2,1941.8,0.58890365]
[1771794117221,0.55571274,1942.2,1941.8,0.58890365]
[1771794127225,0.00584017,1942.5,1942.2,0.58890365]
[1771794127927,0.56155291,1942.5,1942.2,0.58890365]
[1771794128223,0.00584017,1942.5,1942.2,0.58890365]
[1771794129023,0.5909219,1942.6,1942.2,0.58890365]
[1771794129227,0.5909219,1942.8,1942.2,0.58890365]
[1771794129430,6.07225889,1942.7,1942.2,0.58890365]
[1771794129625,0.5909219,1942.8,1942.2,0.58890365]
[1771794129825,6.07248775,1942.7,1942.2,0.58890365]
[1771794130025,0.00512995,1942.7,1942.2,0.58890365]
[1771794132731,0.59605185,1942.7,1942.2,0.58890365]
[1771794142544,0.00512995,1942.7,1942.2,0.58890365]
[1771794142739,0.58541194,1942.7,1942.2,0.58890365]
[1771794155852,0.00512995,1942.7,1942.4,0.60147232]
[1771794168663,0.6104699,1942.7,1942.4,0.60147232]
[1771794168863,0.00512995,1942.7,1942.4,0.60147232]
[1771794175662,0.6104699,1942.7,1942.2,0.57908786]
[1771794181772,0.6104699,1942.7,1941.9,0.57908786]
[1771794181971,0.60533995,1942.5,1941.9,0.57908786]
[1771794187776,0.60533995,1942.5,1941.7,0.58908786]
[1771794189180,0.54680279,1942.3,1941.7,0.58908786]
[1771794206089,0.5928557,1942.5,1941.7,0.58908786]
[1771794214110,0.5928557,1942.6,1941.7,0.58908786]
[1771794215505,0.5928557,1942.6,1941.8,0.56343929]
[1771794217405,0.00512995,1942.7,1941.8,0.56343929]
[1771794217406,0.00512995,1942.7,1942.0,0.56343929]
[1771794217801,4.32102871,1943.1,1942.3,0.56343929]
[1771794217802,0.5928557,1942.9,1942.3,0.56343929]
[1771794219004,0.5983564,1942.9,1942.3,0.56343929]
[1771794228108,0.5983564,1942.9,1941.9,1.18760767]
[1771794228312,0.5983564,1942.9,1942.0,0.56902451]
[1771794229410,0.59942824,1942.6,1942.0,0.56902451]
[1771794242628,0.59942824,1942.6,1941.8,0.56902451]
[1771794242934,0.59942824,1942.2,1941.8,0.56902451]
[1771794243228,10.3162749,1942.5,1941.8,0.56902451]
[1771794243229,0.59942824,1942.4,1941.8,0.56902451]
[1771794243531,6.59903254,1942.3,1941.8,0.56902451]
[1771794243830,0.59942824,1942.3,1941.8,0.56902451]
[1771794250934,0.59880089,1942.6,1942.0,0.57829396]
[1771794252733,0.59880089,1942.4,1942.0,0.57829396]
[1771794279550,0.54964795,1942.5,1942.0,0.57829396]
[1771794279751,0.54964795,1942.3,1941.8,0.59074296]
[1771794292157,0.54964795,1942.5,1941.8,0.59074296]
[1771794292357,6.53919861,1942.4,1941.8,0.59074296]
[1771794292658,0.54964795,1942.4,1941.8,0.59074296]
[1771794294152,4.86396928,1942.6,1941.8,0.59074296]
[1771794294360,5.9899865,1942.5,1941.9,0.59074296]
[1771794294552,0.54964795,1942.6,1941.9,0.59074296]
[1771794294748,5.99010474,1942.5,1941.9,0.59074296]
[1771794294947,0.54964795,1942.6,1941.9,0.59074296]
[1771794299951,5.98676687,1942.5,1941.9,0.59074296]
[1771794300157,0.54964795,1942.4,1941.9,0.59074296]
[1771794301164,4.31432133,1942.8,1941.9,0.59074296]
[1771794301459,5.98640842,1942.8,1941.9,0.59074296]
[1771794301660,0.0055007,1942.9,1942.2,0.59074296]
[1771794303262,0.61313751,1942.9,1942.2,0.59074296]
[1771794308565,0.61313751,1942.9,1942.1,0.0147925]
[1771794309161,0.61313751,1942.9,1942.2,0.01]
[1771794311368,0.61313751,1942.9,1942.2,0.02354475]
[1771794311670,0.61313751,1942.9,1942.3,0.01354475]
[1771794324475,0.61313751,1942.9,1942.2,0.01]
[1771794334186,0.59697813,1942.7,1942.2,0.01]
[1771794340882,0.59697813,1942.7,1942.0,8.10290549]
[1771794341085,0.59697813,1942.7,1942.0,8.12813021]
[1771794343188,0.59697813,1942.7,1942.0,0.02522472]
[1771794343487,0.59697813,1942.7,1942.0,8.12813021]
[1771794345890,0.59697813,1942.7,1941.9,8.10290549]
[1771794346188,0.59697813,1942.7,1941.8,8.12896056]
[1771794349689,0.59697813,1942.7,1941.8,0.02605507]
[1771794351491,0.60555291,1942.5,1941.8,0.02605507]
[1771794355995,0.60555291,1942.5,1941.8,8.12896056]
[1771794357096,0.60555291,1942.5,1941.8,0.02605507]
[1771794361096,0.60555291,1942.5,1941.7,1.20479595]
[1771794361496,0.60555291,1942.5,1941.7,0.01654334]
[1771794363902,0.60555291,1942.3,1941.7,0.01654334]
[1771794364104,0.60555291,1942.3,1941.6,8.1182449]
[1771794365405,0.60555291,1942.3,1941.7,0.01260511]
[1771794370008,0.60555291,1942.3,1941.9,0.01026808]
[1771794370307,0.60289496,1942.7,1941.9,0.01026808]
[1771794370505,0.60289496,1942.5,1941.9,0.01026808]
[1771794384427,0.60289496,1942.5,1941.8,1.18825261]
[1771794384723,0.60289496,1942.5,1941.8,1.19394296]
[1771794386325,0.60289496,1942.5,1941.8,1.18825261]
[1771794386530,0.60610591,1942.4,1941.7,8.10290549]
[1771794388230,0.60614832,1942.2,1941.6,8.10290549]
[1771794388431,0.60614832,1942.2,1941.5,8.36420415]
[1771794388631,0.60614832,1942.2,1941.6,8.10290549]
[1771794389132,0.60614832,1942.2,1941.7,0.01]
[1771794408155,0.60614832,1942.2,1941.7,0.01081141]
[1771794408456,0.60614832,1942.2,1941.7,0.01]
[1771794442474,4.31432133,1942.6,1941.7,0.01]
[1771794442674,6.03145164,1942.5,1941.7,0.01]
[1771794442975,6.03145164,1942.4,1941.7,0.01]
[1771794443174,6.03145164,1942.3,1941.7,0.01]
[1771794443376,4.31432133,1942.6,1941.7,0.01]
[1771794443678,6.03147819,1942.5,1941.7,0.01]
[1771794443876,6.03147819,1942.4,1941.7,0.01]
[1771794444178,6.03147819,1942.3,1941.7,0.01]
[1771794444379,4.31432133,1942.6,1941.7,0.01]
[1771794444574,0.60393107,1942.4,1941.7,0.01]
[1771794444774,0.60393107,1942.2,1941.7,0.01]
[1771794445478,0.60393107,1942.2,1941.7,0.01805226]
[1771794446076,0.60393107,1942.2,1941.7,0.01]
[1771794446882,0.60393107,1942.2,1941.7,0.01805091]
[1771794447780,0.60393107,1942.2,1941.7,0.01]
[1771794473298,0.60393107,1942.2,1941.7,1.19818242]
[1771794480003,0.60393107,1942.2,1941.7,9.3054683]
[1771794481107,0.60393107,1942.2,1941.7,9.30108791]
[1771794484708,0.58422019,1942.7,1942.0,0.59523263]
[1771794485009,0.58422019,1942.5,1941.9,1.78341505]
[1771794486009,0.58422019,1942.5,1942.1,1.78341505]
[1771794486506,0.58422019,1942.5,1942.1,1.18818242]
[1771794491714,0.58422019,1942.5,1942.1,1.75850883]
[1771794492115,0.58422019,1942.5,1942.1,0.57032641]
[1771794492320,0.58422019,1942.5,1942.0,0.57032641]
[1771794514349,0.58422019,1942.5,1942.1,0.54797291]
[1771794525558,0.58422019,1942.5,1942.0,8.10290549]
[1771794525763,0.58422019,1942.5,1942.0,8.68926663]
[1771794526165,0.58422019,1942.5,1942.1,0.58636114]
[1771794530363,1.19368312,1942.9,1942.1,0.58636114]
[1771794530568,0.56827922,1942.7,1942.2,0.58636114]
[1771794531164,0.56827922,1942.7,1942.1,1.77454356]
[1771794533270,0.56827922,1942.7,1942.1,0.58636114]
[1771794540376,0.56827922,1942.7,1942.0,8.68926663]
[1771794540575,0.56827922,1942.7,1941.8,8.68926663]
[1771794540772,0.56827922,1942.7,1941.8,0.58636114]
[1771794550177,0.56827922,1942.7,1941.7,0.01]
[1771794550382,0.5666679,1942.4,1941.7,0.01]
[1771794553683,0.5666679,1942.4,1941.4,0.59515528]
[1771794566500,0.5666679,1942.4,1941.5,0.59322474]
[1771794578203,6.08614011,1942.3,1941.5,0.59322474]
[1771794578402,0.57087395,1942.2,1941.5,0.59322474]
[1771794594215,0.57087395,1942.4,1941.5,0.59322474]
[1771794594414,6.09642445,1942.3,1941.5,0.59322474]
[1771794594614,0.57087395,1942.4,1941.5,0.59322474]
[1771794594815,6.66730519,1942.3,1941.5,0.59322474]
[1771794595012,0.57087395,1942.3,1941.5,0.59322474]
[1771794595214,0.57087395,1942.3,1941.6,0.56938608]
[1771794602616,0.57087395,1942.3,1941.8,0.56938608]
[1771794602822,0.57087395,1942.6,1942.0,0.56938608]
[1771794603020,6.66803582,1942.5,1942.0,0.56938608]
[1771794603320,0.57087395,1942.5,1942.0,0.56938608]
[1771794611824,0.57087395,1942.5,1941.7,1.18851523]
[1771794611825,1.81101358,1942.7,1942.2,0.59896968]
[1771794613335,0.59711754,1942.6,1942.2,0.59896968]
[1771794631753,1.21389604,1942.7,1942.2,0.59896968]
[1771794632149,1.21389604,1942.7,1942.4,0.59028014]
[1771794639459,0.57677809,1942.8,1942.4,0.59028014]
[1771794679488,10.42431252,1942.9,1942.4,0.59028014]
[1771794679686,0.57599747,1942.8,1942.4,0.59028014]
[1771794700314,0.56248477,1942.9,1942.4,0.59028014]
[1771794707819,0.56248477,1942.9,1942.4,0.60028014]
[1771794712920,0.0055007,1942.9,1942.4,0.60028014]
[1771794714428,0.55698407,1943.0,1942.4,0.60028014]
[1771794714623,0.55698407,1943.3,1942.4,0.60028014]
[1771794714827,0.55698407,1943.1,1942.4,0.60028014]
[1771794715328,0.56199997,1943.1,1942.5,0.58749817]
[1771794717228,0.56199997,1943.1,1942.7,0.58749817]
[1771794717436,0.56199997,1943.1,1942.7,0.59387112]
[1771794727340,0.56199997,1943.1,1942.7,0.00637295]
[1771794727837,0.56199997,1943.1,1942.7,0.59387112]
[1771794731139,0.56199997,1943.1,1942.5,0.58089896]
[1771794732139,0.56199997,1943.1,1942.5,0.58532821]
[1771794742948,0.60451063,1942.8,1942.4,0.01]
[1771794743247,0.60451063,1942.8,1942.2,0.59619616]
[1771794743746,0.60451063,1942.8,1942.2,1.78336531]
[1771794744145,0.60451063,1942.8,1942.2,0.00665142]
[1771794745645,0.60451063,1942.6,1941.9,0.59619616]
[1771794745840,0.60451063,1942.4,1941.7,0.59619616]
[1771794746745,0.60451063,1942.4,1941.7,0.60009733]
[1771794750154,0.60451063,1942.4,1941.7,0.00390117]
[1771794752046,0.60451063,1942.4,1941.8,1.78336531]
[1771794752852,0.60451063,1942.4,1941.9,0.59619616]
[1771794753051,0.60451063,1942.8,1941.9,1.78336531]
[1771794753256,0.60451063,1942.6,1941.9,1.78336531]
[1771794759966,0.60451063,1942.6,1942.0,0.56539231]
[1771794773384,0.56168457,1942.4,1942.0,0.56539231]
[1771794797799,0.55206696,1942.6,1942.0,0.56539231]
[1771794797995,6.61675717,1942.5,1942.0,0.56539231]
[1771794798194,0.55206696,1942.5,1942.0,0.56539231]
[1771794811606,0.55206696,1942.8,1942.1,0.55587519]
[1771794811905,6.06460911,1942.7,1942.1,0.55587519]
[1771794812104,0.55206696,1942.8,1942.1,0.55587519]
[1771794812302,6.06464139,1942.7,1942.1,0.55587519]
[1771794812505,0.55206696,1942.8,1942.1,0.55587519]
[1771794812705,6.06116428,1942.7,1942.1,0.55587519]
[1771794812900,0.55206696,1942.8,1942.1,0.55587519]
[1771794813106,6.06116679,1942.7,1942.1,0.55587519]
[1771794813303,0.55206696,1942.8,1942.1,0.55587519]
[1771794831315,4.32383307,1943.1,1942.1,0.55587519]
[1771794831520,0.57758955,1943.1,1942.4,0.5706858]